fUST/lending_fUST_20250709
["ID","MTS","AMOUNT","RATE_DAILY","PERIOD"]
[370430687,1752016259630,-460.0,0.00020547,2]
[370430688,1752016259639,-460.0,0.00020547,2]
[370430689,1752016259648,-460.0,0.00020547,2]
[370430690,1752016259658,-460.0,0.00020547,2]
[370430691,1752016259668,-460.0,0.00020547,2]
[370430692,1752016259678,-460.0,0.00020547,2]
[370430693,1752016259688,-460.0,0.00020547,2]
[370430694,1752016259697,-460.0,0.00020547,2]
[370430695,1752016259706,-460.0,0.00020547,2]
[370430696,1752016259716,-460.0,0.00020547,2]
[370430697,1752016259726,-460.0,0.00020547,2]
[370430698,1752016259735,-460.0,0.00020547,2]
[370430699,1752016259744,-460.0,0.00020547,2]
[370430700,1752016259753,-151.0,0.00020547,2]
[370430701,1752016259763,-503.92,0.00020547,2]
[370430702,1752016259772,-460.0,0.00020547,2]
[370430703,1752016259781,-460.0,0.00020547,2]
[370430704,1752016259791,-311.37302137,0.00020547,2]
[370430705,1752016259800,-460.0,0.00020547,2]
[370430706,1752016259809,-512.36,0.00020547,2]
[370430707,1752016259819,-216.996173,0.00020547,2]
[370430708,1752016259828,-591.71,0.00020547,2]
[370430709,1752016259837,-460.0,0.00020547,2]
[370430710,1752016259847,-151.0,0.00020547,2]
[370430711,1752016259857,-216.996173,0.00020547,2]
[370430712,1752016259866,-460.0,0.00020547,2]
[370430713,1752016259876,-151.0,0.00020547,2]
[370430714,1752016259885,-151.0,0.00020547,2]
[370430715,1752016259894,-460.0,0.00020547,2]
[370430716,1752016259904,-460.0,0.00020547,2]
[370430717,1752016259913,-460.0,0.00020547,2]
[370430718,1752016259922,-607.78,0.00020547,2]
[370430719,1752016259931,-460.0,0.00020547,2]
[370430720,1752016259941,-460.0,0.00020547,2]
[370430721,1752016259953,-460.0,0.00020547,2]
[370430722,1752016259962,-460.0,0.00020547,2]
[370430723,1752016259971,-151.0,0.00020547,2]
[370430724,1752016259982,-460.0,0.00020547,2]
[370430725,1752016259992,-151.0,0.00020547,2]
[370430726,1752016260003,-460.0,0.00020547,2]
[370430727,1752016260012,-460.0,0.00020547,2]
[370430728,1752016260021,-460.0,0.00020547,2]
[370430729,1752016260031,-460.0,0.00020547,2]
[370430730,1752016260040,-460.0,0.00020547,2]
[370430731,1752016260050,-230.31533964,0.00020547,2]
[370430732,1752016260059,-231.990938,0.00020547,2]
[370430733,1752016260069,-545.34,0.00020547,2]
[370430734,1752016260079,-460.0,0.00020547,2]
[370430735,1752016260088,-460.0,0.00020547,2]
[370430736,1752016260098,-290.44314168,0.00020547,2]
[370430737,1752016260107,-487.58207288,0.00020547,2]
[370430738,1752016260116,-460.0,0.00020547,2]
[370430739,1752016260126,-460.0,0.00020547,2]
[370430740,1752016260135,-188.29,0.00020547,2]
[370430741,1752016260144,-171.4167446,0.00020547,2]
[370430742,1752016260154,-598.75,0.00020547,2]
[370430743,1752016260163,-460.0,0.00020547,2]
[370430744,1752016260173,-460.0,0.00020547,2]
[370430745,1752016260182,-460.0,0.00020547,2]
[370430746,1752016260192,-707.11,0.00020547,2]
[370430747,1752016260201,-460.0,0.00020547,2]
[370430748,1752016260211,-460.0,0.00020547,2]
[370430749,1752016260220,-465.49882219,0.00020547,2]
[370430750,1752016260230,-460.0,0.00020547,2]
[370430751,1752016260239,-460.0,0.00020547,2]
[370430752,1752016260249,-576.67583942,0.00020547,2]
[370430753,1752016260258,-460.0,0.00020547,2]
[370430754,1752016260268,-1978.77,0.00020547,2]
[370430755,1752016260277,-428.48263288,0.00020547,2]
[370430756,1752016260286,-297.881289,0.00020547,2]
[370430757,1752016260295,-460.0,0.00020547,2]
[370430758,1752016260305,-460.0,0.00020547,2]
[370430759,1752016260315,-3737.24,0.00020547,2]
[370430760,1752016260326,-460.0,0.00020547,2]
[370430761,1752016260335,-460.0,0.00020547,2]
[370430762,1752016260344,-460.0,0.00020547,2]
[370430763,1752016260353,-460.0,0.00020547,2]
[370430764,1752016260363,-460.0,0.00020547,2]
[370430765,1752016260373,-1049.6,0.00020547,2]
[370430766,1752016260382,-460.0,0.00020547,2]
[370430767,1752016260394,-979.0,0.00020547,2]
[370430768,1752016260403,-460.0,0.00020547,2]
[370430769,1752016260413,-460.0,0.00020547,2]
[370430770,1752016260422,-460.0,0.00020547,2]
[370430771,1752016260431,-460.0,0.00020547,2]
[370430772,1752016260440,-460.0,0.00020547,2]
[370430773,1752016260450,-460.0,0.00020547,2]
[370430774,1752016260459,-460.0,0.00020547,2]
[370430775,1752016260468,-595.54,0.00020547,2]
[370430776,1752016260477,-1208.7,0.00020547,2]
[370430777,1752016260487,-460.0,0.00020547,2]
[370430778,1752016260496,-460.0,0.00020547,2]
[370430779,1752016260505,-460.0,0.00020547,2]
[370430780,1752016260514,-2762.92,0.00020547,2]
[370430781,1752016260523,-1829.3,0.00020547,2]
[370430782,1752016260533,-460.0,0.00020547,2]
[370430783,1752016260543,-460.0,0.00020547,2]
[370430784,1752016260552,-490.6,0.00020547,2]
[370430785,1752016260562,-151.0,0.00020547,2]
[370430786,1752016260571,-460.0,0.00020547,2]
[370430787,1752016260581,-460.0,0.00020547,2]
[370430788,1752016260591,-460.0,0.00020547,2]
[370430789,1752016260600,-234.539944,0.00020547,2]
[370430790,1752016260609,-460.0,0.00020547,2]
[370430791,1752016260619,-151.0,0.00020547,2]
[370430792,1752016260628,-460.0,0.00020547,2]
[370430793,1752016260638,-460.0,0.00020547,2]
[370430794,1752016260647,-460.0,0.00020547,2]
[370430795,1752016260656,-460.0,0.00020547,2]
[370430796,1752016260666,-613.94,0.00020547,2]
[370430797,1752016260675,-460.0,0.00020547,2]
[370430798,1752016260685,-460.0,0.00020547,2]
[370430799,1752016260694,-1198.17,0.00020547,2]
[370430800,1752016260703,-460.0,0.00020547,2]
[370430801,1752016260797,-151.0,0.00020547,2]
[370430802,1752016260814,-558.79,0.00020547,2]
[370430803,1752016260824,-460.0,0.00020547,2]
[370430804,1752016260833,-358.66426709,0.00020547,2]
[370430805,1752016260843,-460.0,0.00020547,2]
[370430806,1752016260853,-876.27,0.00020547,2]
[370430807,1752016260862,-698.91,0.00020547,2]
[370430808,1752016260872,-460.0,0.00020547,2]
[370430809,1752016260881,-460.0,0.00020547,2]
[370430810,1752016260891,-3546.81,0.00020547,2]
[370430811,1752016260900,-2160.36,0.00020547,2]
[370430812,1752016260910,-460.0,0.00020547,2]
[370430813,1752016260919,-460.0,0.00020547,2]
[370430814,1752016260929,-460.0,0.00020547,2]
[370430815,1752016260938,-460.0,0.00020547,2]
[370430816,1752016260948,-197.46680754,0.00020547,2]
[370430817,1752016260957,-460.0,0.00020547,2]
[370430818,1752016260966,-460.0,0.00020547,2]
[370430819,1752016260976,-562.12,0.00020547,2]
[370430820,1752016260985,-1820.93,0.00020547,2]
[370430821,1752016260995,-2481.76,0.00020547,2]
[370430822,1752016261004,-801.89,0.00020547,2]
[370430823,1752016261013,-660.88,0.00020547,2]
[370430824,1752016261023,-780.51,0.00020547,2]
[370430825,1752016261032,-926.47,0.00020547,2]
[370430826,1752016261041,-460.0,0.00020547,2]
[370430827,1752016261051,-487.54,0.00020547,2]
[370430828,1752016261060,-460.0,0.00020547,2]
[370430829,1752016261069,-460.0,0.00020547,2]
[370430830,1752016261079,-460.0,0.00020547,2]
[370430831,1752016261088,-460.0,0.00020547,2]
[370430832,1752016261098,-460.0,0.00020547,2]
[370430833,1752016261107,-460.0,0.00020547,2]
[370430834,1752016261117,-460.0,0.00020547,2]
[370430835,1752016261126,-460.0,0.00020547,2]
[370430836,1752016261136,-460.0,0.00020547,2]
[370430837,1752016261146,-1249.85,0.00020547,2]
[370430838,1752016261155,-460.0,0.00020547,2]
[370430839,1752016261164,-654.86,0.00020547,2]
[370430840,1752016261174,-1707.37,0.00020547,2]
[370430841,1752016261183,-460.0,0.00020547,2]
[370430842,1752016261193,-460.0,0.00020547,2]
[370430843,1752016261202,-460.0,0.00020547,2]
[370430844,1752016261212,-460.0,0.00020547,2]
[370430845,1752016261222,-460.0,0.00020547,2]
[370430846,1752016261232,-671.3,0.00020547,2]
[370430847,1752016261241,-460.0,0.00020547,2]
[370430848,1752016261251,-460.0,0.00020547,2]
[370430849,1752016261260,-460.0,0.00020547,2]
[370430850,1752016261270,-1353.97,0.00020547,2]
[370430851,1752016261279,-460.0,0.00020547,2]
[370430852,1752016261289,-460.0,0.00020547,2]
[370430853,1752016261298,-440.0,0.00020547,2]
[370430854,1752016261308,-460.0,0.00020547,2]
[370430855,1752016261320,-460.0,0.00020547,2]
[370430856,1752016261329,-460.0,0.00020547,2]
[370430857,1752016261339,-460.0,0.00020547,2]
[370430858,1752016261348,-1191.42,0.00020547,2]
[370430859,1752016261358,-460.0,0.00020547,2]
[370430860,1752016261368,-460.0,0.00020547,2]
[370430861,1752016261377,-462.56,0.00020547,2]
[370430862,1752016261389,-558.02,0.00020547,2]
[370430863,1752016261399,-460.0,0.00020547,2]
[370430864,1752016261409,-460.0,0.00020547,2]
[370430865,1752016261419,-460.0,0.00020547,2]
[370430866,1752016261428,-460.0,0.00020547,2]
[370430867,1752016261438,-253.02760975,0.00020547,2]
[370430868,1752016261447,-460.0,0.00020547,2]
[370430869,1752016261457,-460.0,0.00020547,2]
[370430870,1752016261466,-460.0,0.00020547,2]
[370430871,1752016261476,-151.0,0.00020548,2]
[370430872,1752016261485,-151.0,0.00020548,2]
[370430873,1752016261494,-151.0,0.00020548,2]
[370430874,1752016261504,-500.72056785,0.00020548,2]
[370430875,1752016261514,-500.0,0.00020548,2]
[370430876,1752016261523,-151.0,0.00020548,2]
[370430877,1752016261533,-151.0,0.00020548,2]
[370430878,1752016261543,-151.0,0.00020548,2]
[370430879,1752016261552,-151.0,0.00020548,2]
[370430880,1752016261562,-500.0,0.00020548,2]
[370430881,1752016261571,-500.0,0.00020548,2]
[370430882,1752016261581,-151.0,0.00020548,2]
[370430883,1752016261590,-151.0,0.00020548,2]
[370430884,1752016261599,-151.0,0.00020548,2]
[370430885,1752016261608,-151.0,0.00020548,2]
[370430886,1752016261617,-151.0,0.00020548,2]
[370430887,1752016261627,-151.0,0.00020548,2]
[370430888,1752016261636,-151.0,0.00020548,2]
[370430889,1752016261646,-151.0,0.00020548,2]
[370430890,1752016261656,-238.0,0.00020563,2]
[370430891,1752016261665,-238.0,0.00020564,2]
[370430892,1752016261675,-1500.0,0.00020568,2]
[370430893,1752016261685,-500.0,0.00020568,2]
[370430894,1752016261693,-1000.0,0.00020568,2]
[370430895,1752016261703,-178.372249,0.0002057,2]
[370430896,1752016261713,-151.0,0.00020576,2]
[370430897,1752016261722,-198.0,0.00020576,2]
[370430898,1752016261732,-151.0,0.00020576,2]
[370430899,1752016261742,-500.0,0.00020576,2]
[370430900,1752016261752,-151.0,0.00020576,2]
[370430901,1752016261761,-198.0,0.00020576,2]
[370430902,1752016261770,-151.0,0.00020576,2]
[370430903,1752016261780,-151.0,0.00020576,2]
[370430904,1752016261791,-500.0,0.00020576,2]
[370430905,1752016261800,-500.0,0.00020576,2]
[370430906,1752016261810,-151.0,0.00020576,2]
[370430907,1752016261820,-198.0,0.00020576,2]
[370430908,1752016261829,-292.0,0.00020576,2]
[370430909,1752016261838,-151.0,0.00020576,2]
[370430910,1752016261848,-199.19616753,0.00020576,2]
[370430911,1752016261857,-151.0,0.00020576,2]
[370430912,1752016261867,-151.0,0.00020576,2]
[370430913,1752016261876,-151.0,0.00020576,2]
[370430914,1752016261886,-600.0,0.0002058,2]
[370430915,1752016261895,-641.0,0.000206,2]
[370430916,1752016261904,-281.44887311,0.00020603,2]
[370430917,1752016261914,-151.0,0.00020603,2]
[370430918,1752016261924,-500.0,0.00020603,2]
[370430919,1752016261935,-264.95655386,0.00020603,2]
[370430920,1752016261944,-151.0,0.00020603,2]
[370430921,1752016261954,-151.0,0.00020603,2]
[370430922,1752016261964,-246.8883299,0.00020603,2]
[370430923,1752016261976,-151.0,0.00020603,2]
[370430924,1752016261987,-151.0,0.00020603,2]
[370430925,1752016261996,-151.0,0.00020603,2]
[370430926,1752016262006,-198.0,0.00020603,2]
[370430927,1752016262018,-151.0,0.00020603,2]
[370430928,1752016262029,-238.0,0.00020619,2]
[370430929,1752016262040,-194.68294943,0.00020631,2]
[370430930,1752016262050,-500.0,0.00020631,2]
[370430931,1752016262060,-151.0,0.00020631,2]
[370430932,1752016262070,-151.0,0.00020631,2]
[370430933,1752016262081,-175.6042664,0.00020631,2]
[370430934,1752016262091,-151.0,0.00020631,2]
[370430935,1752016262100,-259.98735537,0.00020631,2]
[370430936,1752016262110,-151.0,0.00020631,2]
[370430937,1752016262119,-725.0,0.00020657,2]
[370430938,1752016262130,-500.0,0.00020658,2]
[370430939,1752016262140,-245.0,0.00020658,2]
[370430940,1752016262150,-182.40864838,0.00020658,2]
[370430941,1752016262159,-245.0,0.00020658,2]
[370430942,1752016262169,-245.0,0.00020658,2]
[370430943,1752016262179,-238.0,0.00020683,2]
[370430944,1752016262191,-500.0,0.00020685,2]
[370430945,1752016262201,-151.0,0.000207,3]
[370430946,1752016262211,-500.0,0.00020713,2]
[370430947,1752016262221,-5113.51077367,0.00020728,3]
[370430948,1752016262233,-159.0,0.0002073,2]
[370430949,1752016262243,-159.0,0.0002073,2]
[370430950,1752016262341,-159.0,0.0002073,2]
[370430951,1752016262351,-159.0,0.0002073,2]
[370430952,1752016262361,-159.0,0.0002073,2]
[370430953,1752016262370,-154.0,0.0002073,2]
[370430954,1752016262380,-159.0,0.0002073,2]
[370430955,1752016262390,-154.0,0.0002073,2]
[370430956,1752016262400,-159.0,0.0002073,2]
[370430957,1752016262409,-154.0,0.0002073,2]
[370430958,1752016262419,-159.0,0.0002073,2]
[370430959,1752016262430,-159.0,0.0002073,2]
[370430960,1752016262439,-159.0,0.0002073,2]
[370430961,1752016262449,-159.0,0.0002073,2]
[370430962,1752016262458,-169.36834577,0.0002073,2]
[370430963,1752016262469,-318.0,0.0002073,2]
[370430964,1752016262479,-318.0,0.0002073,2]
[370430965,1752016262490,-318.0,0.0002073,2]
[370430966,1752016262500,-318.0,0.0002073,2]
[370430967,1752016262510,-318.0,0.0002073,2]
[370430968,1752016262521,-318.0,0.0002073,2]
[370430969,1752016262531,-318.0,0.0002073,2]
[370430970,1752016262541,-318.0,0.0002073,2]
[370430971,1752016262551,-318.0,0.0002073,2]
[370430972,1752016262561,-318.0,0.0002073,2]
[370430973,1752016262572,-318.0,0.0002073,2]
[370430974,1752016262582,-318.0,0.0002073,2]
[370430975,1752016262593,-318.0,0.0002073,2]
[370430976,1752016262603,-318.0,0.0002073,2]
[370430977,1752016262613,-318.0,0.0002073,2]
[370430978,1752016262623,-318.0,0.0002073,2]
[370430979,1752016262632,-318.0,0.0002073,2]
[370430980,1752016262643,-318.0,0.0002073,2]
[370430981,1752016262652,-318.0,0.0002073,2]
[370430982,1752016262662,-318.0,0.0002073,2]
[370430983,1752016262672,-318.0,0.0002073,2]
[370430984,1752016262681,-318.0,0.0002073,2]
[370430985,1752016262691,-318.0,0.0002073,2]
[370430986,1752016262701,-318.0,0.0002073,2]
[370430987,1752016262711,-318.0,0.0002073,2]
[370430988,1752016262720,-318.0,0.0002073,2]
[370430989,1752016262729,-318.0,0.0002073,2]
[370430990,1752016262738,-318.0,0.0002073,2]
[370430991,1752016262748,-318.0,0.0002073,2]
[370430992,1752016262757,-318.0,0.0002073,2]
[370430993,1752016262767,-319.92909851,0.0002073,2]
[370430994,1752016262777,-238.0,0.0002073,2]
[370430995,1752016262786,-500.0,0.0002074,2]
[370430996,1752016262796,-5000.0,0.00020748,2]
[370430997,1752016262805,-151.0,0.00020748,2]
[370430998,1752016262814,-151.0,0.00020748,2]
[370430999,1752016262823,-151.0,0.00020748,2]
[370431000,1752016262832,-151.0,0.00020748,2]
[370431001,1752016262842,-238.0,0.00020766,2]
[370431002,1752016262852,-500.0,0.00020768,2]
[370431003,1752016262862,-500.0,0.0002077,2]
[370431004,1752016262871,-500.0,0.0002077,2]
[370431005,1752016262881,-500.0,0.0002077,2]
[370431006,1752016262890,-501.28097156,0.0002077,2]
[370431007,1752016262899,-500.0,0.0002077,2]
[370431008,1752016262909,-600.0,0.0002077,2]
[370431009,1752016262918,-500.98628859,0.0002077,2]
[370431010,1752016262928,-500.0,0.00020795,2]
[370431011,1752016262938,-8000.0,0.00020818,2]
[370431012,1752016262947,-757.590677,0.00020818,2]
[370431013,1752016262957,-757.590677,0.00020818,2]
[370431014,1752016262966,-172.494114,0.00020818,2]
[370431015,1752016262975,-172.494114,0.00020818,2]
[370431016,1752016262985,-151.0,0.00020821,2]
[370431017,1752016262995,-151.0,0.00020821,2]
[370431018,1752016263004,-564.64535008,0.00020821,2]
[370431019,1752016263013,-460.0,0.00020821,2]
[370431020,1752016263023,-460.0,0.00020821,2]
[370431021,1752016263032,-460.0,0.00020821,2]
[370431022,1752016263041,-460.0,0.00020821,2]
[370431023,1752016263051,-460.0,0.00020821,2]
[370431024,1752016263060,-460.0,0.00020821,2]
[370431025,1752016263070,-460.0,0.00020821,2]
[370431026,1752016263079,-460.0,0.00020821,2]
[370431027,1752016263089,-460.0,0.00020821,2]
[370431028,1752016263098,-324.02004236,0.00020821,2]
[370431029,1752016263108,-460.0,0.00020821,2]
[370431030,1752016263117,-460.0,0.00020821,2]
[370431031,1752016263127,-460.0,0.00020821,2]
[370431032,1752016263137,-460.0,0.00020821,2]
[370431033,1752016263146,-151.0,0.00020821,2]
[370431034,1752016263156,-503.92,0.00020821,2]
[370431035,1752016263170,-460.0,0.00020821,2]
[370431036,1752016263180,-460.0,0.00020821,2]
[370431037,1752016263190,-512.36,0.00020821,2]
[370431038,1752016263199,-591.71,0.00020821,2]
[370431039,1752016263209,-319.98270827,0.00020821,2]
[370431040,1752016263218,-460.0,0.00020821,2]
[370431041,1752016263228,-151.0,0.00020821,2]
[370431042,1752016263238,-460.0,0.00020821,2]
[370431043,1752016263247,-151.0,0.00020821,2]
[370431044,1752016263257,-151.0,0.00020821,2]
[370431045,1752016263266,-460.0,0.00020821,2]
[370431046,1752016263276,-460.0,0.00020821,2]
[370431047,1752016263285,-607.78,0.00020821,2]
[370431048,1752016263297,-460.0,0.00020821,2]
[370431049,1752016263307,-240.8924153,0.00020821,2]
[370431050,1752016263320,-460.0,0.00020821,2]
[370431051,1752016263329,-465.72464833,0.00020821,2]
[370431052,1752016263338,-460.0,0.00020821,2]
[370431053,1752016263348,-460.0,0.00020821,2]
[370431054,1752016263359,-460.0,0.00020821,2]
[370431055,1752016263368,-460.0,0.00020821,2]
[370431056,1752016263378,-460.0,0.00020821,2]
[370431057,1752016263387,-460.0,0.00020821,2]
[370431058,1752016263397,-460.0,0.00020821,2]
[370431059,1752016263406,-460.0,0.00020821,2]
[370431060,1752016263416,-460.0,0.00020821,2]
[370431061,1752016263426,-460.0,0.00020821,2]
[370431062,1752016263435,-707.11,0.00020821,2]
[370431063,1752016263444,-460.0,0.00020821,2]
[370431064,1752016263453,-460.0,0.00020821,2]
[370431065,1752016263462,-460.0,0.00020821,2]
[370431066,1752016263472,-460.0,0.00020821,2]
[370431067,1752016263481,-460.0,0.00020821,2]
[370431068,1752016263490,-1978.77,0.00020821,2]
[370431069,1752016263500,-460.0,0.00020821,2]
[370431070,1752016263510,-460.0,0.00020821,2]
[370431071,1752016263519,-3737.24,0.00020821,2]
[370431072,1752016263529,-460.0,0.00020821,2]
[370431073,1752016263539,-460.0,0.00020821,2]
[370431074,1752016263549,-460.0,0.00020821,2]
[370431075,1752016263560,-460.0,0.00020821,2]
[370431076,1752016263569,-1049.6,0.00020821,2]
[370431077,1752016263579,-460.0,0.00020821,2]
[370431078,1752016263589,-979.0,0.00020821,2]
[370431079,1752016263598,-460.0,0.00020821,2]
[370431080,1752016263609,-460.0,0.00020821,2]
[370431081,1752016263619,-460.0,0.00020821,2]
[370431082,1752016263629,-460.0,0.00020821,2]
[370431083,1752016263639,-460.0,0.00020821,2]
[370431084,1752016263648,-460.0,0.00020821,2]
[370431085,1752016263658,-460.0,0.00020821,2]
[370431086,1752016263757,-595.54,0.00020821,2]
[370431087,1752016263767,-1208.7,0.00020821,2]
[370431088,1752016263777,-459.41059472,0.00020821,2]
[370431089,1752016263787,-460.0,0.00020821,2]
[370431090,1752016263797,-2762.92,0.00020821,2]
[370431091,1752016263807,-1829.3,0.00020821,2]
[370431092,1752016263816,-281.68,0.00020821,2]
[370431093,1752016263826,-460.0,0.00020821,2]
[370431094,1752016263836,-490.6,0.00020821,2]
[370431095,1752016263846,-151.0,0.00020821,2]
[370431096,1752016263855,-460.0,0.00020821,2]
[370431097,1752016263865,-460.0,0.00020821,2]
[370431098,1752016263875,-460.0,0.00020821,2]
[370431099,1752016263885,-460.0,0.00020821,2]
[370431100,1752016263895,-460.0,0.00020821,2]
[370431101,1752016263905,-460.0,0.00020821,2]
[370431102,1752016263914,-613.94,0.00020821,2]
[370431103,1752016263924,-460.0,0.00020821,2]
[370431104,1752016263934,-460.0,0.00020821,2]
[370431105,1752016263944,-1198.17,0.00020821,2]
[370431106,1752016263953,-460.0,0.00020821,2]
[370431107,1752016263964,-460.0,0.00020821,2]
[370431108,1752016263973,-151.0,0.00020821,2]
[370431109,1752016263983,-460.0,0.00020821,2]
[370431110,1752016263993,-460.0,0.00020821,2]
[370431111,1752016264004,-876.27,0.00020821,2]
[370431112,1752016264013,-698.91,0.00020821,2]
[370431113,1752016264023,-460.0,0.00020821,2]
[370431114,1752016264033,-460.0,0.00020821,2]
[370431115,1752016264042,-3546.81,0.00020821,2]
[370431116,1752016264053,-2160.36,0.00020821,2]
[370431117,1752016264064,-460.0,0.00020821,2]
[370431118,1752016264075,-460.0,0.00020821,2]
[370431119,1752016264085,-460.0,0.00020821,2]
[370431120,1752016264095,-460.0,0.00020821,2]
[370431121,1752016264105,-562.12,0.00020821,2]
[370431122,1752016264115,-1820.93,0.00020821,2]
[370431123,1752016264124,-2481.76,0.00020821,2]
[370431124,1752016264134,-801.89,0.00020821,2]
[370431125,1752016264143,-660.88,0.00020821,2]
[370431126,1752016264153,-780.51,0.00020821,2]
[370431127,1752016264162,-926.47,0.00020821,2]
[370431128,1752016264172,-460.0,0.00020821,2]
[370431129,1752016264182,-487.54,0.00020821,2]
[370431130,1752016264192,-460.0,0.00020821,2]
[370431131,1752016264201,-460.0,0.00020821,2]
[370431132,1752016264210,-460.0,0.00020821,2]
[370431133,1752016264220,-169.98,0.00020821,2]
[370431134,1752016264230,-460.0,0.00020821,2]
[370431135,1752016264240,-320.03897064,0.00020821,2]
[370431136,1752016264249,-460.0,0.00020821,2]
[370431137,1752016264259,-556.37829816,0.00020821,2]
[370431138,1752016264268,-193.08403378,0.00020821,2]
[370431139,1752016264278,-1249.85,0.00020821,2]
[370431140,1752016264288,-460.0,0.00020821,2]
[370431141,1752016264299,-654.86,0.00020821,2]
[370431142,1752016264310,-1707.37,0.00020821,2]
[370431143,1752016264323,-460.0,0.00020821,2]
[370431144,1752016264332,-460.0,0.00020821,2]
[370431145,1752016264342,-460.0,0.00020821,2]
[370431146,1752016264351,-460.0,0.00020821,2]
[370431147,1752016264363,-671.3,0.00020821,2]
[370431148,1752016264372,-460.0,0.00020821,2]
[370431149,1752016264382,-460.0,0.00020821,2]
[370431150,1752016264393,-460.0,0.00020821,2]
[370431151,1752016264403,-1353.97,0.00020821,2]
[370431152,1752016264413,-460.0,0.00020821,2]
[370431153,1752016264423,-460.0,0.00020821,2]
[370431154,1752016264433,-460.0,0.00020821,2]
[370431155,1752016264442,-460.0,0.00020821,2]
[370431156,1752016264452,-460.0,0.00020821,2]
[370431157,1752016264462,-460.0,0.00020821,2]
[370431158,1752016264472,-1191.42,0.00020821,2]
[370431159,1752016264482,-460.0,0.00020821,2]
[370431160,1752016264492,-460.0,0.00020821,2]
[370431161,1752016264502,-462.56,0.00020821,2]
[370431162,1752016264511,-558.02,0.00020821,2]
[370431163,1752016264522,-460.0,0.00020821,2]
[370431164,1752016264531,-493.44607357,0.00020821,2]
[370431165,1752016264542,-550.03,0.00020821,2]
[370431166,1752016264552,-460.0,0.00020821,2]
[370431167,1752016264564,-460.0,0.00020821,2]
[370431168,1752016264573,-460.0,0.00020821,2]
[370431169,1752016264583,-460.0,0.00020821,2]
[370431170,1752016264593,-500.0,0.00020822,2]
[370431171,1752016264602,-660.38643757,0.00020835,2]
[370431172,1752016264612,-500.0,0.0002085,2]
[370431173,1752016264621,-238.0,0.00020871,2]
[370431174,1752016264631,-500.0,0.00020877,2]
[370431175,1752016264641,-238.0,0.0002088,2]
[370431176,1752016264651,-3529.12,0.00020896,2]
[370431177,1752016264660,-500.0,0.00020905,2]
[370431178,1752016264670,-9000.0,0.00020926,2]
[370431179,1752016264680,-216.996173,0.00020926,2]
[370431180,1752016264691,-151.0,0.00020926,2]
[370431181,1752016264701,-216.996173,0.00020926,2]
[370431182,1752016264710,-151.0,0.00020926,2]
[370431183,1752016264720,-151.0,0.00020926,2]
[370431184,1752016264729,-151.0,0.00020926,2]
[370431185,1752016264739,-5113.51077367,0.00020934,4]
[370431186,1752016264748,-10865.95376722,0.00020939,2]